Cogmind - Beta 13 @@@ ROGUE MODE // 2024.05.03 @ 21:28:13 Player: e.v.o Result: Self-destructed Performance ------------- Evolutions (3) 1500 Regions Visited (6) 1200 Robots Destroyed (59) 295 Value Destroyed (1607) 1607 Prototype IDs (2) 40 Alien Tech Used (0) 0 Bonus (309) 309 TOTAL SCORE: 4951 Bonus ------- High Alert Combat Kills 211 Follower Combat Kills 181 Friendly Fire -83 Cogmind --------- Core Integrity 568/700 Matter 107/300 Energy 290/290 System Corruption 0% Temperature Warning (358) Movement Hovering (102) Ox1 Location -7/Factory Parts ------- > --- POWER (2) -------- Nuclear Core Micro Nuclear Core > --- PROPULSION (3) --- Improved Airjet Improved Airjet Improved Airjet > --- UTILITY (4) ------ Improved Heat Sink Small Storage Unit Hacking Suite > --- WEAPON (4) ------- Pulse Rifle (fused) Rocket Launcher Powered Hammer > --- INVENTORY (8) ---- Nuclear Core Nuclear Core Gravmag System Gravmag System Gravmag System Hacking Suite Flak Cannon Flak Cannon Peak State ------------ > --- POWER ------------ Light Deuterium Engine Nuclear Core > --- PROPULSION ------- Improved Airjet Improved Airjet Improved Airjet > --- UTILITY ---------- Improved Cooling System Small Storage Unit Advanced Weight Redist. System Hacking Suite > --- WEAPON ----------- Heavy EM Shotgun Pulse Rifle Pulse Rifle Shock Bomb Launcher > --- INVENTORY -------- Improved Ion Engine Gravmag System Gravmag System Gravmag System Improved Heat Sink Hardened Medium Armor Plating Hacking Suite Shock Bomb Launcher [Rating: 47] Favorites ----------- Power Light Ion Engine Engine Light Ion Engine Power Core Nuclear Core Propulsion Improved Airjet Treads Light Treads Leg Aluminum Leg Wheel Armored Wheel Hover Unit Improved Airjet Flight Unit Flight Unit Utility Small Storage Unit Device Improved Heat Sink Storage Small Storage Unit Processor Advanced Targeting Computer Hackware Hacking Suite Protection Improved Light Armor Plating Weapon Pulse Rifle Energy Gun Pulse Rifle Ballistic Gun Heavy Assault Rifle Ballistic Cannon Light Cannon Launcher Grenade Launcher Impact Weapon Powered Hammer Build | -11 -10 -10 -9 -9 -8 -7 ------- Run | Yrd Mat Min Mat Min Mat Fac Slots Evolved 6 | . . . 2 . 2 2 Power 1 | . . . . . . 1 Propulsion 1 | . . . 1 . . . Utility 2 | . . . . . 1 1 Weapon 2 | . . . 1 . 1 . Parts Attached 92 | 8 9 11 15 . 25 24 Power 17 | 1 . 4 2 . 3 7 Engine 11 | 1 . 4 2 . 1 3 Core 6 | . . . . . 2 4 Reactor . | . . . . . . . Propulsion 25 | 4 2 3 6 . 10 . Treads 2 | 2 . . . . . . Leg 2 | 2 . . . . . . Wheel 9 | . . . 3 . 6 . Hover 6 | . 2 . . . 4 . Flight 6 | . . 3 3 . . . Utility 19 | 1 3 3 3 . 2 7 Device 12 | . 2 2 1 . 2 5 Storage 3 | 1 . 1 1 . . . Processor 1 | . . . . . . 1 Hackware 1 | . . . . . . 1 Protection 2 | . 1 . 1 . . . Artifact . | . . . . . . . Weapon 31 | 2 4 1 4 . 10 10 Energy Gun 9 | 1 1 . 1 . 2 4 Energy Cannon . | . . . . . . . Ballistic Gun 9 | 1 1 . 3 . 4 . Ballistic Cannon 4 | . 1 . . . . 3 Launcher 8 | . 1 1 . . 4 2 Special Weapon . | . . . . . . . Impact Weapon 1 | . . . . . . 1 Slashing Weapon . | . . . . . . . Piercing Weapon . | . . . . . . . Special Melee Weapon . | . . . . . . . Unidentified Prototypes 2 | . . . . . 1 1 Parts Lost 4 | . . . 1 . 1 2 Power 1 | . . . . . 1 . Propulsion 1 | . . . 1 . . . Utility . | . . . . . . . Weapon 2 | . . . . . . 2 Highest Loss Streak 1 | . . . 1 . 1 1 To Critical Strikes . | . . . . . . . Average Slot Usage (%) 97 | . 86 100 98 100 99 97 Engine 7 | . 14 14 11 11 2 1 Core 4 | . . . . . 6 12 Leg 2 | . 17 . . . . . Wheel 9 | . . . 21 33 19 . Hover 11 | . 8 13 . . 7 23 Flight 3 | . . 14 10 . . . Device 9 | . 4 17 5 . 9 12 Storage 7 | . 11 4 5 11 9 7 Hackware 1 | . . . . . . 5 Protection 5 | . 1 6 10 11 9 . Energy Gun 8 | . 4 . 6 11 8 16 Ballistic Gun 5 | . 4 . 14 11 10 . Ballistic Cannon 4 | . 9 14 . . . 2 Launcher 11 | . 9 14 11 11 17 8 Naked Turns . | . . . . . . . Heaviest Build 36 | 11 15 14 26 26 36 36 Greatest Support 40 | 40 20 17 36 36 36 36 Greatest Overweight (x) 4 | . 4 . 1 . 3 1 Average Overweight (x) . | . . . . . . . Largest Inventory Capacity 8 | 8 8 8 8 8 8 8 Average Capacity 7 | 6 7 5 6 8 8 8 Most Carried 8 | 4 8 7 8 8 8 8 Average Carried 6 | 2 3 4 6 7 7 7 Final Capacity 8 | 8 5 8 8 8 8 8 Final Carried 8 | 4 4 7 8 8 7 8 Class Distribution -------------------- 44% | Bomber 27% | Mutant 17% | Gunner 5% | Scavenger-Mutant 4% | Scavenger-Bomber Dominant Class ---------------- Mutant | -10/Materials Mutant | -10/Mines Bomber | -9/Materials Bomber | -9/Mines Bomber | -8/Materials Gunner | -7/Factory Resources | -11 -10 -10 -9 -9 -8 -7 ----------- Run | Yrd Mat Min Mat Min Mat Fac Matter Collected 1727 | 198 249 112 339 28 384 417 Remotely . | . . . . . . . Salvage Created 1546 | . 109 61 343 31 483 519 Parts 99 | . 15 16 20 5 15 28 Haulers Intercepted 6 | . 1 . . . 3 2 Recyclers Shooed 4 | . 1 . 2 . 1 . Parts Field Recycled . | . . . . . . . Retrieved Matter . | . . . . . . . Parts Self-Destructed . | . . . . . . . Prevented . | . . . . . . . Kills | -11 -10 -10 -9 -9 -8 -7 ------- Run | Yrd Mat Min Mat Min Mat Fac Combat Hostiles Destroyed 37 | . 3 8 7 3 6 10 Guns 15 | . 3 . 4 2 4 2 Cannons 4 | . . 3 . . . 1 AOE 18 | . . 5 3 1 2 7 Classes Destroyed 11 | . 4 . 6 . . 1 Worker 4 | . 1 . 1 . . 2 Hauler 6 | . 1 . . . 3 2 Recycler 2 | . . . 1 . 1 . Mechanic 1 | . . . . . . 1 Operator 4 | . . . 1 . . 3 Watcher 5 | . 2 . 1 . 1 1 Swarmer 16 | . 3 8 2 3 . . Grunt 13 | . . . 1 . 4 8 Brawler 1 | . . . 1 . . . Duelist 2 | . . . 1 . . 1 Sentry 5 | . . . 2 . 2 1 Best Kill Streak 6 | . 3 3 6 3 6 6 Combat Bots Only 4 | . 3 3 4 3 3 4 Max Kills in Single Turn 5 | . 1 3 2 2 2 5 Gunslinging . | . . . . . . . Exploded 3 | . . 3 2 1 1 3 Melee . | . . . . . . . Uniques/NPCs Destroyed . | . . . . . . . Combat | -11 -10 -10 -9 -9 -8 -7 -------- Run | Yrd Mat Min Mat Min Mat Fac Hostile Shots Fired 144 | . 18 12 25 11 24 54 Missed 52 | . 4 4 13 6 8 17 Damage Taken 1538 | . 155 84 153 40 330 776 Core 203 | . 15 . 21 8 27 132 Absorbed by Shields . | . . . . . . . Redirected to Shielding 5 | . . 5 . . . . Core Remaining (%) 95 | 100 . 94 . 92 95 . Volleys Fired 135 | . 17 8 23 6 36 45 Largest 4 | . 2 2 3 3 4 4 Hottest 209 | . 65 65 113 116 197 209 Shots Fired 291 | . 27 10 56 12 80 106 Gun 204 | . 17 . 45 11 67 64 Cannon 42 | . 8 8 . . . 26 Launcher 45 | . 2 2 11 1 13 16 Special . | . . . . . . . Kinetic 115 | . 17 8 34 6 24 26 Thermal 125 | . 8 . 11 5 43 58 Explosive 35 | . 2 2 11 1 6 13 Electromagnetic 16 | . . . . . 7 9 Robot Hit Streak 9 | . 3 2 9 1 8 6 Robot Miss Streak 12 | . 4 2 5 3 12 8 Penetration Max . | . . . . . . . Secondary Targets 1 | . 1 . . . . . Max Gunslinging Chain 1 | . 1 . . . . . Shots Hit Robots 151 | . 11 4 22 2 46 66 Core Hits 109 | . 8 7 16 3 22 53 Critical Kills . | . . . . . . . Critical Parts Destroyed . | . . . . . . . Critical Strikes 8 | . . . 1 . 2 5 Burn 8 | . . . 1 . 2 5 Melee Attacks . | . . . . . . . Impact . | . . . . . . . Slashing . | . . . . . . . Piercing . | . . . . . . . Sneak Attacks . | . . . . . . . Combat Hostiles . | . . . . . . . Follow-up Attacks . | . . . . . . . Damage Inflicted 4644 | . 246 267 647 138 1223 2123 Guns 1688 | . 93 . 239 45 673 638 Cannons 529 | . 57 73 . . . 399 Explosions 2427 | . 96 194 408 93 550 1086 Melee . | . . . . . . . Ramming . | . . . . . . . Kinetic 881 | . 95 73 105 29 180 399 Thermal 1930 | . 55 . 134 16 632 1093 Explosive 1502 | . 96 194 408 93 234 477 Electromagnetic 331 | . . . . . 177 154 Impact . | . . . . . . . Slashing . | . . . . . . . Piercing . | . . . . . . . Highest Corruption 5 | . . . . . . 5 Average Corruption 2 | . . . . . . 2 Corruption Purged 5 | . . . . . . 5 Corruption Blocked . | . . . . . . . Effects 5 | . . . . . . 5 Heat Flow Errors 2 | . . . . . . 2 Energy Discharges 1 | . . . . . . 1 Parts Fused 1 | . . . . . . 1 Weapon Failures 1 | . . . . . . 1 Overload Shots . | . . . . . . . Overflow Damage 166 | . . 17 4 . 46 99 Projectiles . | . . . . . . . Explosions 166 | . . 17 4 . 46 99 Melee . | . . . . . . . Knockbacks 14 | . . . . . . 14 Impact . | . . . . . . . Kinetic 13 | . . . . . . 13 Secondary 1 | . . . . . . 1 Self-Inflicted Damage 375 | . 40 . 47 . 91 197 Shots 12 | . 1 . 2 . 5 4 Rammed . | . . . . . . . Targets Rammed . | . . . . . . . Kicked . | . . . . . . . Crushed . | . . . . . . . Highest Temperature 358 | . 20 9 168 112 96 358 Average Temperature 61 | . 6 5 45 59 37 85 Received Heat Transfer 342 | . . . 6 . 108 228 Effects 2 | . . . . . . 2 Interference 1 | . . . . . . 1 Damage (minor) 1 | . . . . . . 1 Siege Activations . | . . . . . . . Robots Corrupted . | . . . . . . . Combat Hostiles . | . . . . . . . Parts Fried . | . . . . . . . Impact Corruptions . | . . . . . . . Robots Melted . | . . . . . . . Combat Hostiles . | . . . . . . . Parts Melted 1 | . . . . . 1 . Heat Transferred 3868 | . 125 . 370 37 1395 1941 Parts Sabotaged . | . . . . . . . Parts Stolen . | . . . . . . . Parts Stripped . | . . . . . . . Power Chain Reactions 1 | . . . . . 1 . Alert | -11 -10 -10 -9 -9 -8 -7 ------- Run | Yrd Mat Min Mat Min Mat Fac Peak Influence 894 | . 138 280 274 200 550 894 Initial 203 | . . 53 109 106 78 203 Average 299 | . 77 168 120 198 393 577 Maximum Alert Level 3 | . . 1 1 1 2 3 Low Security (%) 36 | 100 100 45 85 7 4 . Level 1 33 | . . 54 14 92 49 18 Level 2 24 | . . . . . 45 58 Level 3 5 | . . . . . . 22 Level 4 . | . . . . . . . Level 5 . | . . . . . . . High Security . | . . . . . . . Max Security . | . . . . . . . Squads Dispatched 8 | . . . 1 . 2 5 Investigation 3 | . . . . . 2 1 Extermination 1 | . . . . . . 1 Reinforcement 3 | . . . 1 . . 2 Assault 1 | . . . . . . 1 Garrison . | . . . . . . . Intercept . | . . . . . . . Searches Triggered . | . . . . . . . Construction Impeded . | . . . . . . . Haulers Reinforced 1 | . . . . . . 1 Active Scanning Responses . | . . . . . . . Cargo Convoy Interrupts . | . . . . . . . Stealth | -11 -10 -10 -9 -9 -8 -7 --------- Run | Yrd Mat Min Mat Min Mat Fac Distress Signals 1 | . . . . . 1 . Communications Jammed . | . . . . . . . Distress Signals . | . . . . . . . Times Spotted 58 | . 5 4 10 3 13 23 Peak Tracking Total 4 | . 3 3 2 3 4 4 Tactical Retreats 1 | . . . 1 . . . Traps | -11 -10 -10 -9 -9 -8 -7 ------- Run | Yrd Mat Min Mat Min Mat Fac Traps Triggered 3 | . . . . . . 3 Indirectly . | . . . . . . . Trap Hack Attempts . | . . . . . . . Triggered . | . . . . . . . Disarmed . | . . . . . . . Reprogrammed . | . . . . . . . Reused . | . . . . . . . Traps Extracted . | . . . . . . . Installed . | . . . . . . . Triggered . | . . . . . . . Machines | -11 -10 -10 -9 -9 -8 -7 ---------- Run | Yrd Mat Min Mat Min Mat Fac Machines Disabled 25 | . . 1 . . 7 17 Max in Single Turn 12 | . . 1 . . 5 12 Machines Repaired . | . . . . . . . Machines Dismantled . | . . . . . . . Machines Sabotaged . | . . . . . . . Overloaded Fab Kills . | . . . . . . . Hacking | -11 -10 -10 -9 -9 -8 -7 --------- Run | Yrd Mat Min Mat Min Mat Fac Machines Accessed 11 | . 1 1 1 . 3 5 Terminals 6 | . 1 . 1 . 1 3 Fabricators 1 | . . . . . . 1 Repair Stations 2 | . . . . . 1 1 Recycling Units . | . . . . . . . Scanalyzers 1 | . . . . . 1 . Garrison Access . | . . . . . . . Total Hacks 20 | . 1 1 2 . 8 8 Successful 10 | . . 1 2 . 3 4 Failed 10 | . 1 . . . 5 4 Catastrophic 5 | . 1 . . . 2 2 Database Lockouts . | . . . . . . . Manual . | . . . . . . . Terminals 8 | . 1 . 2 . 2 3 Fabricators 3 | . . . . . . 3 Repair Stations 6 | . . . . . 4 2 Recycling Units . | . . . . . . . Scanalyzers 2 | . . . . . 2 . Garrison Access . | . . . . . . . Terminal Hacks 6 | . . 1 2 . . 3 Part Schematic 1 | . . . . . . 1 Open Door 1 | . . 1 . . . . Open DSF 1 | . . . . . . 1 Unreport Threat 2 | . . . 2 . . . Locate Traps 1 | . . . . . . 1 Fabricator Hacks . | . . . . . . . Repair Station Hacks 2 | . . . . . 1 1 Scan Component 2 | . . . . . 1 1 Recycling Unit Hacks . | . . . . . . . Scanalyzer 2 | . . . . . 2 . Insert Component 1 | . . . . . 1 . Analyze 1 | . . . . . 1 . Garrison Access Hacks . | . . . . . . . Unauthorized Hacks . | . . . . . . . Terminals . | . . . . . . . Fabricators . | . . . . . . . Repair Stations . | . . . . . . . Recycling Units . | . . . . . . . Scanalyzers . | . . . . . . . Garrison Access . | . . . . . . . Data Cores Recovered 2 | . . . 1 . . 1 Used 1 | . . . 1 . . . Hacking Detections 10 | . 1 . 1 . 3 5 Full Trace Events 3 | . . . . . 2 1 Feedback Events . | . . . . . . . Feedback Blocked . | . . . . . . . Robot Schematics Acquired . | . . . . . . . Robots Built . | . . . . . . . Authchips . | . . . . . . . Time . | . . . . . . . Total Robot Build Rating . | . . . . . . . Part Schematics Acquired 2 | . . . . . 1 1 Parts Built . | . . . . . . . Authchips . | . . . . . . . Time . | . . . . . . . Total Part Build Rating . | . . . . . . . Parts Repaired . | . . . . . . . Time . | . . . . . . . Parts Recycled . | . . . . . . . Recycled Matter . | . . . . . . . Retrieved Matter . | . . . . . . . Retrieved Components . | . . . . . . . Parts Scanalyzed 1 | . . . . . 1 . Part Schematics Acquired 1 | . . . . . 1 . Parts Damaged . | . . . . . . . Bothacking | -11 -10 -10 -9 -9 -8 -7 ------------ Run | Yrd Mat Min Mat Min Mat Fac Used RIF Installer . | . . . . . . . Robots Hacked . | . . . . . . . Non-combat . | . . . . . . . Combat . | . . . . . . . Robot Hacks Applied . | . . . . . . . Relay Couplers Released . | . . . . . . . Fabnet Peak Effective % . | . . . . . . . Robots Rewired . | . . . . . . . Allies Hacked . | . . . . . . . Hacks Repelled . | . . . . . . . Allies | -11 -10 -10 -9 -9 -8 -7 -------- Run | Yrd Mat Min Mat Min Mat Fac Total Allies 2 | . . . . 2 . . Largest Group 2 | . . . . 2 2 2 Highest-Rated Group 41 | . . . . 41 41 41 Highest-Rated Ally 31 | . . . . 31 31 31 Total Orders . | . . . . . . . Ally Attacks 33 | . . . . . 22 11 Total Damage 458 | . . . . . 291 167 Kills 5 | . . . . . 3 2 Allies Corrupted 1 | . . . . . . 1 Allies Melted . | . . . . . . . Intel | -11 -10 -10 -9 -9 -8 -7 ------- Run | Yrd Mat Min Mat Min Mat Fac Robot Analysis Total . | . . . . . . . Derelict Logs Recovered 2 | . . 2 . . . . Drone Launches . | . . . . . . . Drone Recoveries . | . . . . . . . Exploration | -11 -10 -10 -9 -9 -8 -7 ------------- Run | Yrd Mat Min Mat Min Mat Fac Turns Passed 2408 | 81 361 397 243 211 483 632 Spaces Moved 2187 | 52 286 584 192 167 384 522 Core 8 | 3 5 . . . . . Treads 13 | 13 . . . . . . Legs 196 | 36 160 . . . . . Wheels 501 | . . . 110 167 224 . Hover 1004 | . 121 201 . . 160 522 Flight 465 | . . 383 82 . . . Fastest Speed 34 | 50 56 37 34 90 42 42 Average Speed 65 | 125 100 43 70 90 71 49 Slowest Speed 250 | 160 250 56 117 90 230 102 Overloaded Moves . | . . . . . . . Propulsion Burnouts . | . . . . . . . Robots Hopped 1 | . . 1 . . . . Cave-ins Triggered . | . . . . . . . Exploration Rate (%) 35 | 5 41 90 22 41 36 14 Regions Visited 6 Branch Regions 2 Pre-discovered Areas 1 | . . 1 . . . . Known Exits Taken . | . . . . . . . Unknown Exits Taken 6 | 1 1 1 1 1 1 . Scrap Searched 2 | . . 1 . 1 . . Spaces Dug 22 | . . . . . 22 . Terrain Destroyed 424 | . 11 17 55 9 122 210 Melee . | . . . . . . . Projectile . | . . . . . . . AOE 424 | . 11 17 55 9 122 210 Terrain Rammed . | . . . . . . . Walls Destroyed . | . . . . . . . Machines Disabled . | . . . . . . . Actions | -11 -10 -10 -9 -9 -8 -7 --------- Run | Yrd Mat Min Mat Min Mat Fac Total 2917 | 63 335 715 259 216 522 807 Wait 371 | . 6 98 9 42 41 175 Move 2179 | 51 285 581 191 166 383 522 Hop 1 | . . 1 . . . . Pick Up 53 | 4 6 6 8 1 14 14 Fast Attach 39 | 6 5 2 6 . 10 10 Attach 13 | . . . 3 . 5 5 Detach 2 | . 1 . . . . 1 Swap 40 | 2 4 9 6 . 10 9 Drop 84 | . 11 10 13 1 23 26 Fire 135 | . 17 8 23 6 36 45 Melee . | . . . . . . . Ram . | . . . . . . . Kick . | . . . . . . . Crush . | . . . . . . . Escape Stasis . | . . . . . . . Rewire . | . . . . . . . Trap . | . . . . . . . Miscellaneous . | . . . . . . . Route ------- -11/Scrapyard -10/Materials -10/Mines (discovered 2 exits: *Mat x2) -9/Materials -9/Mines -8/Materials (discovered 2 exits: *Fac / [*Sto]) -7/Factory History --------- Turn | Location | Event 12 | -11/Scrapyard | Discovered new exit (range 14) 82 | -11/Scrapyard | Entered Materials 300 | -10/Materials | Build established: Mutant 424 | -10/Materials | Discovered new exit (range 16) 443 | -10/Materials | Entered Mines 469 | -10/Mines | Discovered new exit (range 9) 547 | -10/Mines | Learned location of Zion (-6) 772 | -10/Mines | Learned Materials terminal intel 773 | -10/Mines | Met a Derelict who couldn't figure out how to use a Trap Extractor 832 | -10/Mines | YI-UF0 nonchalantly dropped a Grenade Launcher on the ground 836 | -10/Mines | Discovered new exit (range 11) 840 | -10/Mines | Entered Materials 840 | -9/Materials | Evolved 2 slots: Propulsion x1, Weapon x1 841 | -9/Materials | Loaded intel: 12 terminal locations 1043 | -9/Materials | Discovered new exit (range 10) 1083 | -9/Materials | Entered Mines 1222 | -9/Mines | Build established: Bomber 1258 | -9/Mines | Discovered new exit (range 8) 1294 | -9/Mines | Entered Materials 1294 | -8/Materials | Accompanied by 2 allies 1294 | -8/Materials | Evolved 2 slots: Utility x1, Weapon x1 1299 | -8/Materials | Led the pair of lost Derelicts to an unsafe place 1543 | -8/Materials | Discovered new exit (range 16) 1703 | -8/Materials | Discovered new exit (range 12) 1777 | -8/Materials | Entered Factory 1777 | -7/Factory | Accompanied by 2 allies 1777 | -7/Factory | Evolved 2 slots: Power x1, Utility x1 2177 | -7/Factory | First assault squad dispatched 2312 | -7/Factory | Build established: Gunner 2409 | -7/Factory | Self-destructed Last Messages --------------- 02385_ The unstable cave ceiling collapses. 02386_ M-13 Machinist knocked back. 02389_ G-50 Soldier suffers critical hit (Burn). 02389_ G-50 Soldier destroyed. 02397_ A-02 Transporter calls for reinforcements. 02397_ ALERT: Hostile activity reported, dispatching reinforcements to area. 02399_ The unstable cave ceiling collapses. 02399_ Particle Gun crushed. 02400_ G-47 Trooper knocked back. 02400_ G-47 Trooper destroyed. 02400_ A-02 Transporter destroyed. 02403_ G-47 Trooper knocked back. 02406_ P-60 Hacker knocked back. 02407_ Overheating: Flak Cannon damaged (-28). 02407_ The unstable cave ceiling collapses. 02407_ Flak Cannon destroyed. 02408_ Overheating: System interference. 02408_ Powered Hammer temporarily disabled. Map ----- +----------------------------------------------------+ | ## T #?????????????????????????? | | ######+### ##" "### #?????????????????????????? | | ##### ## " ["""#????????????????????????????? | | + * %"#????????????????????????????? | | ## ##" !%= #????????????????????????????? | | ### ### # " ?????????????????????? | | """## ## ?????????????????????? | | """# # ] % # ??????????????????????? | | """# # ??????????????????????? | | ""# = # " ???????????????????????? | | ""## ## % # ???????????????????????? | | ### #### [ "# ???????????????????????? | | #?# #??# "# ????????????????????????? | | ### #### ## ????????????????????????? | | #+## ## # ###### ?????????????????????????? | | ## ###????# ?????????????????????????? | | ####???????# ?????????????????????????? | | #??????????# ###+#####?????????????????? | | #+## #??????????# # #?????????????????? | | #######??????????# # """"" #?????????????????? | | #????????????????# # """"" #?????????????????? | | #???????########## # """ #?????????????????? | | =#???????#T"# # # m# !#?????????????????? | | ######### " # # ######????????????????? | | /+ =p* #????????????????? | | ########### # #@ ^^ #????????????????? | | #?????????#### #%! ^^ #????????????????? | | #????????????###= ^^ #????????????????? | | #??????????????# ###????????????????? | | #??????????????# ! ?????????????????? | | ####??????????????#! # #????????????????? | | ??????????????????# g# #????????????????? | | ??????????????????#"" ## ==%! #????????????????? | | ??????????????????#""" #? ]%] #????????????????? | | ??????????????????#"R #? = #????????????????? | | ????????????????????"" #?# !####????????????????? | | ????????????????????" #??# ???????????????????? | | ????????????????????? #??? #???????????????????? | | ?????????????????????#+##??? #???????????????????? | | ?????????????????????????????#???????????????????? | | ?????????????????????????????????????????????????? | | ?????????????????????????????????????????????????? | | ?????????????????????????????????????????????????? | | ?????????????????????????????????????????????????? | | | | | | | | | | | | | +----------------------------------------------------+ Best States ------------- Heat Dissipation 61 Energy Generation 24 Energy Capacity 380 Matter Stores 300 Matter Capacity 300 Sight Range 16 Robot Scan Range 14 Terrain Scan Density 10 Additional Mass Support 9 Armor Coverage 150 Propulsion Shielding 33 Evasion (%) 63 Targeting Accuracy 8 Recoil Reduction 2 Offensive Hacking 10 Item Schematics ----------------- Imp. Airjet | -8/Materials | Scanalyzed Adv. System Shield | -7/Factory | Hacked Robot Schematics ------------------ None Fabricated ------------ Nothing Alien Tech Used ----------------- None Achievements -------------- It Was An Accident, I Swear Challenges ------------ None Game ------ Seed CompactMasterBuckler Manual? 0 Play Time 00:37:31 Cumulative 65.1 hours Start 2024.05.03 @ 20:52:47 End 2024.05.03 @ 21:28:13 Sessions 1 Manual Loads 0 Difficulty Rogue Special Mode None Game No. 110 Rogue 92 Adventurer 18 Explorer 0 Win Type - Total 0 Types 0/0/0/0/0/0/0/0/0 Lore% 23 Gallery% 38 Achievement% 29 Wizard Run 0 Options --------- Layout 1 ASCII 0 Keyboard 0 Movement Mouse Keybinds 0 Fullscreen 2 Font 24/Smallcaps Map View 50x35 Zoom Use 0% Tactical HUD 1 Map Filters NONE Filters NONE Steam 1 RUN: 14d5420d-ec67-41d6-b7f6-9731790e93f6